[Event "SixDays Budapest January-IMA 2023"]
[Site "Budapest"]
[Date "2023.01.24"]
[Round "3.2"]
[White "Taragan, Uri"]
[Black "Leszko, Bence"]
[Result "0-1"]
[ECO "D07"]
[WhiteElo "1733"]
[BlackElo "2298"]
[Annotator "TA"]
[PlyCount "56"]
[EventDate "2023.01.23"]
[EventType "tourn"]
[EventCountry "HUN"]
[SourceTitle "playchess.com"]
[Source "ChessBase"]
[SourceQuality "1"]
[TimeControl "5400+30"]

{[%evp 9,56,19,36,36,34,16,29,2,10,7,20,20,14,9,20,0,0,0,0,-14,0,-14,0,-9,-9,-10,-10,0,0,0,-11,-5,0,-161,-142,-158,-164,-168,-173,-308,-254,-359,-359,-610,-390,-355,-383,-627,-612]} 1. d4 {[%emt 0:00:02]} d5 {[%emt 0:08:05]} 2. c4 {[%emt 0:00:13]} Nc6 {[%emt 0:00:06]} 3. Nc3 {[%emt 0:08:44]} e6 {[%emt 0:02:34]} 4. cxd5 {[%emt 0:01:57]} exd5 5. Bf4 {[%emt 0:01:39]} Nf6 {[%emt 0:01:45]} 6. e3 {[%emt 0:01:04] D31: Queen's Gambit Declined: Semi-Slav without ...Nf6 (+ Marshall Gambit and Noteboom) and Exchange Variation lines without ...Nf6.} Bd6 {[%emt 0:00:22]} 7. Bxd6 {[%emt 0:03:24]} Qxd6 {[%emt 0:00:16]} 8. a3 {[%emt 0:02:35] White has an edge.} O-O {[%emt 0:01:28]} 9. Bd3 {[%emt 0:00:41]} Re8 {[%emt 0:00:25]} 10. Nge2 {[%emt 0:05:47] [#]} Ne7 $146 {[%emt 0:02:55]} ({Predecessor:} 10... Ng4 11. Ng3 Nxd4 12. Bxh7+ Kxh7 13. Qxd4 c6 14. h3 Nf6 15. O-O Rh8 16. e4 Qf4 {1-0 Manrique Bermudez,J (1454)-Gonzalez Patino,E Medellin U2000 op 2022 (2)}) 11. Qc2 {[%emt 0:01:09] [#] Hoping for Nb5.} c6 {[%emt 0:00:14] Against Nb5} 12. Nf4 {[%emt 0:09:50]} Ng6 {[%emt 0:00:32]} 13. Nxg6 {[%emt 0:00:57]} hxg6 {[%emt 0:00:01]} 14. h3 {[%emt 0:07:15]} b6 {[%emt 0:02:25]} 15. b4 {[%emt 0:09:38]} a5 {[%emt 0:00:45]} 16. Rb1 {[%emt 0:00:27]} axb4 {[%emt 0:00:23]} 17. axb4 {[%emt 0:00:15]} Bd7 {[%emt 0:00:28]} 18. O-O {[%emt 0:05:08]} Qe7 {[%emt 0:00:20]} 19. Na4 {[%emt 0:04:01]} Reb8 {[%emt 0:01:15][%cal Oc6c5]} 20. b5 {[%emt 0:05:25]} cxb5 {[%emt 0:00:25][%mdl 64] [#] Deflection} 21. Bxb5 {[%emt 0:00:10]} (21. Nc3 $11 {and White has nothing to worry.}) 21... Bf5 $19 {[%emt 0:00:06][%mdl 64] Skewer} 22. e4 {[%emt 0:02:01]} dxe4 {[%emt 0:03:31] And now ...e3 would win.} 23. Rbc1 {[%emt 0:18:08]} Ra5 {[%emt 0:02:26]} 24. Qb2 {[%emt 0:02:04]} (24. Nc3 $142) 24... Nh5 {[%emt 0:02:42][%cal Of5h3,Bf6h5,Bh5f4,Bf4d5,Bd5f4,Bf4d3][%mdl 32] White must now prevent ...Bxh3!} 25. d5 {[%emt 0:01:56]} (25. Rc3 $142) 25... Nf4 {[%emt 0:00:30]} 26. Kh1 $2 {[%emt 0:04:26]} (26. Rc3) 26... Nxd5 {[%emt 0:02:28] Strongly threatening ...Qh4.} 27. Rfd1 {[%emt 0:02:36]} Nf4 {[%emt 0:01:38]} 28. Rc3 $2 {[%emt 0:02:22]} (28. Qb3) 28... Nd3 {[%emt 0:01:07] Weighted Error Value: White=0.47/Black=0.19 (very precise)} 0-1

[Event "SixDays Budapest January-IMA 2023"]
[Site "Budapest"]
[Date "2023.01.24"]
[Round "3.3"]
[White "Szeberenyi, Adam"]
[Black "Ihnat, Marek"]
[Result "1-0"]
[ECO "D11"]
[WhiteElo "2331"]
[BlackElo "2138"]
[Annotator "TA"]
[PlyCount "91"]
[EventDate "2023.01.23"]
[EventType "tourn"]
[EventCountry "HUN"]
[SourceTitle "playchess.com"]
[Source "ChessBase"]
[SourceQuality "1"]
[TimeControl "5400+30"]

{[%evp 13,91,13,11,8,7,0,0,0,0,0,0,0,0,-18,-16,-15,-11,-5,-10,-5,-16,-8,0,0,0,0,0,-3,0,0,0,0,0,0,10,12,12,18,160,149,162,161,329,339,329,346,360,344,345,343,342,339,339,325,324,319,308,306,661,441,658,654,582,577,567,564,522,420,826,812,775,764,994,1021,5501,5210,29969,29970,29982,29983]} 1. Nf3 {[%emt 0:00:25]} Nf6 {[%emt 0:01:54]} 2. c4 {[%emt 0:00:05]} c6 {[%emt 0:00:29]} 3. d4 {[%emt 0:00:37]} d5 {[%emt 0:00:03]} 4. e3 {[%emt 0:00:35]} g6 {[%emt 0:00:08]} 5. Nc3 {[%emt 0:00:38]} Bg7 {[%emt 0:00:11]} 6. cxd5 {[%emt 0:00:43]} cxd5 {[%emt 0:00:38]} 7. Bb5+ {[%emt 0:00:07]} Bd7 {[%emt 0:00:05]} 8. Qb3 {[%emt 0:00:13] D94: Grünfeld: 4 Nf3 Bg7 5 e3.} e6 {[%emt 0:01:55]} 9. Bxd7+ {[%emt 0:07:28]} Qxd7 {[%emt 0:01:19]} 10. Ne5 {[%emt 0:00:22] The position is equal.} Qc7 {[%emt 0:11:17]} 11. Qa3 {[%emt 0:04:59] Threatens to win with Nb5.} Bf8 {[%emt 0:01:10]} 12. Qa4+ {[%emt 0:00:20]} Nc6 {[%emt 0:06:13]} 13. Bd2 {[%emt 0:00:21]} Be7 {[%emt 0:01:23] [#]} 14. Rc1 $146 {[%emt 0:15:32]} ({Predecessor:} 14. O-O O-O 15. Nxc6 bxc6 16. Rac1 Rfc8 17. Nb1 a5 18. Rc2 Ng4 19. g3 Nf6 20. Rfc1 {1-0 Agrest,E (2475)-Kolesar,M (2270) Oberwart op 1994 (3)}) 14... O-O {[%emt 0:03:31]} 15. Ne2 {[%emt 0:04:16][%cal Re5c6]} Rfc8 {[%emt 0:03:01]} 16. Nxc6 {[%emt 0:18:33]} bxc6 {[%emt 0:00:08]} 17. Bb4 {[%emt 0:00:19]} Rab8 {[%emt 0:04:27]} 18. Bxe7 {[%emt 0:00:39]} Qxe7 {[%emt 0:00:04]} 19. b3 {[%emt 0:00:32]} c5 {[%emt 0:02:22]} 20. O-O {[%emt 0:00:35]} Qd7 {[%emt 0:29:58]} 21. Rxc5 {[%emt 0:11:05]} Qxa4 {[%emt 0:05:24]} 22. bxa4 {[%emt 0:00:07]} Rxc5 {[%emt 0:07:27]} 23. dxc5 $11 {[%emt 0:00:03][%mdl 4096] Endgame KRN-KRN} Rb2 {[%emt 0:09:56][%csl LRa2,LRe2]} 24. Nd4 {[%emt 0:00:14]} Rxa2 {[%emt 0:01:26]} 25. c6 {[%emt 0:01:35] Against Nd7. Black must now prevent c7.} Rxa4 {[%emt 0:01:09] White now steadily converts the win.} (25... Ne8 $11 {remains equal.}) 26. Rc1 $16 {[%emt 0:00:21] Strongly threatening c7.} Ne8 {[%emt 0:00:54]} 27. Nb5 $1 {[%emt 0:00:10]} (27. c7 Nxc7 28. Kf1 Ne8 $17) 27... Rc4 $2 {[%emt 0:01:04]} (27... Rb4 28. c7 (28. Nxa7 Rb8 $15) 28... Nxc7 29. Nxc7 Kf8) 28. Rxc4 $18 {[%emt 0:00:04]} dxc4 {[%emt 0:00:07] KN-KN} 29. Kf1 $1 {[%emt 0:00:02]} (29. Nxa7 $2 {too greedy.} c3 30. h4 c2 $19) (29. c7 $2 Nxc7 30. Na3 (30. Nxc7 $2 c3 $19) 30... c3 $19) 29... Kf8 {[%emt 0:03:21] [#] Hoping for ...Ke7.} 30. c7 $1 {[%emt 0:00:20]} ({Worse is} 30. Nxa7 Ke7 $11) 30... Nxc7 {[%emt 0:00:07]} 31. Nxc7 {[%emt 0:00:02] KN-KP} Ke7 {[%emt 0:00:12]} 32. Nb5 {[%emt 0:00:09]} a6 {[%emt 0:01:56]} 33. Na3 {[%emt 0:00:31]} Kd6 {[%emt 0:00:52]} 34. Nxc4+ {[%emt 0:00:34]} Kc5 {[%emt 0:00:25]} 35. Ne5 {[%emt 0:02:18]} Kb4 $2 {[%emt 0:02:03]} (35... f5 36. Ke2 Kd5) 36. Ke2 {[%emt 0:00:45]} Kc3 {[%emt 0:01:07]} (36... f6 $142) 37. Nxf7 {[%emt 0:03:10]} a5 {[%emt 0:00:25]} 38. Nd6 {[%emt 0:00:38]} a4 {[%emt 0:00:14]} 39. Nb5+ {[%emt 0:05:26]} Kc4 {[%emt 0:00:30] [#]} 40. Nd4 {[%emt 0:00:42]} a3 {[%emt 0:00:37]} (40... e5 $142 41. Nc2 Kc3) 41. Nc2 {[%emt 0:00:09]} (41. Nxe6 $2 {is the wrong capture.} a2 42. Ng5 a1=Q $19) 41... a2 {[%emt 0:00:17]} 42. Kd2 {[%emt 0:00:19]} Kb3 {[%emt 0:00:21]} 43. f4 {[%emt 0:01:23]} h5 {[%emt 0:00:25]} 44. Kd3 {[%emt 0:00:28]} h4 {[%emt 0:00:48]} 45. g4 {[%emt 0:00:15]} h3 {[%emt 0:01:05]} 46. e4 {[%emt 0:00:13] Weighted Error Value: White=0.07 (flawless) /Black=0.31} 1-0

[Event "SixDays Budapest January-IMA 2023"]
[Site "Budapest"]
[Date "2023.01.24"]
[Round "3.4"]
[White "Heimisson, Hilmir Freyr"]
[Black "Orso, Miklos"]
[Result "1-0"]
[ECO "B22"]
[WhiteElo "2321"]
[BlackElo "2256"]
[Annotator "TA"]
[PlyCount "147"]
[EventDate "2023.01.23"]
[EventType "tourn"]
[EventCountry "HUN"]
[SourceTitle "playchess.com"]
[Source "ChessBase"]
[SourceQuality "1"]
[TimeControl "5400+30"]

{[%evp 16,147,12,0,46,40,50,53,56,47,58,39,56,57,59,60,69,68,134,105,108,111,112,114,110,108,164,169,167,167,195,193,227,225,407,407,406,256,282,271,491,470,548,548,536,532,531,514,504,140,137,137,133,125,143,142,141,101,115,88,103,127,116,111,106,8,115,43,80,24,22,8,11,14,27,8,8,1,13,0,0,0,0,0,0,0,0,0,0,0,0,0,0,0,0,0,0,0,0,0,0,0,0,0,0,0,0,0,0,-87,0,0,0,0,0,-4618,-56,-62,-63,-63,-62,-72,-28,-28,-28,-39,16,0,0,0,0,0,1737,1683]} 1. e4 {[%emt 0:01:41]} c5 {[%emt 0:00:05]} 2. c3 {[%emt 0:01:02]} Nf6 {[%emt 0:00:12]} 3. e5 {[%emt 0:00:21]} Nd5 {[%emt 0:00:06]} 4. Nf3 {[%emt 0:00:05]} Nc6 {[%emt 0:00:21]} 5. Bc4 {[%emt 0:00:07][%cal Bf1c4,Bc4b3,Bb3c2][%mdl 32]} Nb6 {[%emt 0:00:22]} 6. Bb3 {[%emt 0:00:07]} c4 {[%emt 0:01:11]} 7. Bc2 {[%emt 0:00:08]} g6 {[%emt 0:01:31] 7...d6 is a critical line.} 8. O-O {[%emt 0:06:14]} Bg7 {[%emt 0:00:33]} 9. Qe2 {[%emt 0:04:18]} O-O {[%emt 0:03:09] B22: Sicilian: 2 c3.} (9... d5 $11 {might be stronger.}) 10. Na3 $14 {[%emt 0:05:46]} a6 {[%emt 0:11:42]} 11. Re1 {[%emt 0:04:22]} Na5 {[%emt 0:02:51] [#] White is slightly better.} 12. d3 $146 {[%emt 0:05:25]} ({Predecessor:} 12. b4 cxb3 13. axb3 Qc7 14. Bb2 Nd5 15. Qe4 e6 16. Nc4 Nxc4 17. bxc4 Nb6 18. Ba3 {1-0 Smirnova,E (1778)-Matsenko,E (2049) Kostroma Volga Cup op 2009 (4)}) 12... cxd3 {[%emt 0:01:21]} 13. Bxd3 {[%emt 0:00:10]} d5 {[%emt 0:04:16]} 14. h3 {[%emt 0:08:15]} Qc7 {[%emt 0:11:30]} 15. Nc2 {[%emt 0:04:52]} Nc6 {[%emt 0:06:16]} 16. Bf4 {[%emt 0:03:05]} f6 {[%emt 0:14:58]} (16... Na4 $14) 17. exf6 {[%emt 0:14:34][%mdl 64] [#] Discovered Attack. White is more active.} Qxf4 {[%emt 0:00:03]} 18. fxg7 {[%emt 0:00:12]} Kxg7 {[%emt 0:00:37][%cal Oc8h3]} 19. Ncd4 {[%emt 0:03:26]} Nxd4 {[%emt 0:01:29]} 20. Nxd4 {[%emt 0:06:03]} (20. cxd4 Bxh3 21. Qxe7+ Kg8 $14) 20... Rf7 {[%emt 0:04:37]} (20... Re8 $16 {is a better defense.}) 21. a4 $18 {[%emt 0:02:06]} a5 {[%emt 0:03:40]} 22. Bb5 {[%emt 0:00:31]} Kf8 {[%emt 0:04:16]} 23. Rad1 {[%emt 0:02:57]} e5 {[%emt 0:06:21]} 24. Qxe5 $40 {[%emt 0:02:58][%cal Re5h8][%mdl 128] [#] White attacks with force.} Qxf2+ $2 {[%emt 0:00:10]} (24... Qxe5 25. Rxe5 Re7) 25. Kh1 {[%emt 0:02:17][%cal Re5h8]} Qf6 {[%emt 0:00:12] Dodges Qh8+} 26. Qe3 {[%emt 0:06:23]} Bf5 {[%emt 0:07:01]} 27. Rf1 {[%emt 0:02:33]} (27. Nxf5 $6 gxf5 28. Qf4 Kg8 $18) 27... Kg7 $2 {[%emt 0:03:46]} (27... Kg8 {was worth a try.} 28. Nxf5 gxf5) 28. Rde1 {[%emt 0:01:00]} (28. Rxf5 gxf5 29. Ne6+ Kh8 $18) 28... Qd6 {[%emt 0:02:53]} 29. Nxf5+ {[%emt 0:07:40]} gxf5 {[%emt 0:00:55]} 30. Qd4+ {[%emt 0:01:51]} Qf6 {[%emt 0:00:17]} 31. Re5 {[%emt 0:01:10]} (31. Rxf5 Qxd4 32. Rxf7+ Kxf7 $16) 31... f4 32. Rf5 $2 {[%emt 0:03:39]} (32. g3 $18 {[%cal Rf1f4] and White stays clearly on top.} f3 33. Qg4+ (33. Rg5+ Kh8 $16) 33... Kh8 34. Re6) 32... Qxd4 $16 {[%emt 0:02:08]} 33. Rxf7+ {[%emt 0:00:03]} Kxf7 {[%emt 0:00:09]} 34. cxd4 {[%emt 0:00:01][%mdl 4096] Endgame KRB-KRN} Kg7 {[%emt 0:02:15]} 35. Rxf4 {[%emt 0:00:14]} Rc8 {[%emt 0:00:16]} 36. Rf3 {[%emt 0:02:18]} Rc1+ {[%emt 0:00:18]} 37. Kh2 {[%emt 0:00:01]} Rd1 {[%emt 0:00:18]} 38. Rc3 {[%emt 0:00:43]} Rxd4 {[%emt 0:00:59]} 39. b3 {[%emt 0:00:04]} Rf4 {[%emt 0:00:33]} 40. Kg3 {[%emt 0:00:43]} (40. Bd3 $16) 40... Rf7 {[%emt 0:00:33] Wards off Rc7} (40... Rb4 $1 $11 {remains equal.}) 41. Rd3 {[%emt 0:00:46]} (41. Be2 $16) 41... Rf5 {[%emt 0:00:46]} 42. Kg4 {[%emt 0:00:21]} (42. Kh4 $16) 42... Kf6 $11 {[%emt 0:00:09]} 43. Rc3 {[%emt 0:00:39]} h5+ {[%emt 0:01:09]} 44. Kg3 {[%emt 0:00:07]} Rg5+ {[%emt 0:01:09]} 45. Kf3 {[%emt 0:00:23]} h4 {[%emt 0:00:17] ...Rg3+ is the strong threat.} 46. Kf2 {[%emt 0:00:40] Wards off Rg3} Rg7 {[%emt 0:01:59]} 47. Be2 {[%emt 0:00:28]} Ke5 {[%emt 0:00:40]} 48. Rc5 {[%emt 0:00:31]} Nd7 {[%emt 0:01:27]} 49. Rxa5 {[%emt 0:00:21] Threatens to win with Bf3.} Nf6 {[%emt 0:00:06]} 50. Bf3 {[%emt 0:00:23]} Kd4 {[%emt 0:00:11]} 51. Ra7 {[%emt 0:01:21]} Ne4+ {[%emt 0:00:25]} 52. Ke2 {[%emt 0:00:15]} Nc3+ {[%emt 0:00:28]} 53. Kd2 {[%emt 0:00:12]} Rc7 {[%emt 0:00:21]} 54. Ra8 {[%emt 0:00:47]} Nb1+ {[%emt 0:00:36]} 55. Kd1 {[%emt 0:00:28]} Nc3+ {[%emt 0:00:17]} 56. Kd2 {[%emt 0:00:01]} Nb1+ {[%emt 0:00:11]} 57. Kd1 {[%emt 0:00:03]} Nc3+ {[%emt 0:00:04]} 58. Ke1 {[%emt 0:00:04]} Ne4 {[%emt 0:01:01]} 59. Rd8 {[%emt 0:01:25]} Rc1+ {[%emt 0:00:33]} 60. Ke2 {[%emt 0:00:17]} Rc2+ {[%emt 0:00:24]} 61. Kd1 {[%emt 0:01:02]} Rb2 {[%emt 0:00:01]} 62. Rh8 {[%emt 0:00:56]} (62. Bxe4 $11 {keeps the balance.} Kxe4 63. Kc1 Rxg2 64. Rh8) 62... Rxb3 {[%emt 0:00:25]} ({Black should play} 62... Nc3+ $17 63. Kc1 Rf2) 63. Rxh4 {[%emt 0:00:13]} Kd3 {[%emt 0:00:09][%cal Rb3b1]} 64. Be2+ {[%emt 0:00:45]} Ke3 {[%emt 0:00:18]} 65. Bb5 $2 {[%emt 0:00:32][%mdl 8192]} (65. Bf3 $11) 65... d4 $2 {[%emt 0:00:24]} (65... Rc3 $19 {( -> ...Nf2+)} 66. Rxe4+ Kxe4) 66. Kc2 $1 $15 {[%emt 0:00:16]} Rc3+ {[%emt 0:01:46][%mdl 1024] Black has compensation.} 67. Kb2 {[%emt 0:00:28]} Rc7 {[%emt 0:00:08] Repels Rh7} 68. Rh8 {[%emt 0:00:42]} Rf7 {[%emt 0:01:45] Inhibits Rf8.} (68... d3 $5 {[%cal Rc7c2]} 69. Rd8 Rc2+ 70. Kb3 Nc5+ 71. Kb4 d2 $17) 69. g4 {[%emt 0:00:32]} Rf2+ {[%emt 0:00:18]} 70. Kb3 {[%emt 0:00:25]} ({Don't go for} 70. Kc1 $2 d3 71. Bxd3 Kxd3 72. Rd8+ Kc4 73. Rc8+ Nc5 $19) 70... b6 {[%emt 0:00:41]} (70... d3 $15 71. Rd8 d2) 71. Rd8 {[%emt 0:00:32]} (71. Re8 $5 {[%cal Rb5c6]} Rf6 72. Bd7 $14 (72. g5 Rd6 $11)) 71... Rh2 {[%emt 0:00:23]} 72. Re8 {[%emt 0:00:24] Black must now prevent Bc6.} Rxh3 {[%emt 0:00:22]} 73. Kc4 {[%emt 0:00:26]} Rh2 $2 {[%emt 0:00:51][%mdl 8192]} (73... d3 $2 74. Kd5 $18) (73... Rh6 $11 74. Bd7 (74. g5 Rd6 $15) 74... Kf4) 74. Kd5 {[%emt 0:00:29] A wild game.   Weighted Error Value: White=0.25 (precise) /Black=0.31} 1-0

[Event "SixDays Budapest January-IMA 2023"]
[Site "Budapest"]
[Date "2023.01.24"]
[Round "3.5"]
[White "Magold, Filip"]
[Black "Baski, Barnabas"]
[Result "1-0"]
[ECO "C97"]
[WhiteElo "2230"]
[BlackElo "2188"]
[Annotator "TA"]
[PlyCount "117"]
[EventDate "2023.01.23"]
[EventType "tourn"]
[EventCountry "HUN"]
[SourceTitle "playchess.com"]
[Source "ChessBase"]
[SourceQuality "1"]
[TimeControl "5400+30"]

{[%evp 26,117,31,18,27,16,26,25,53,47,52,39,61,74,70,72,63,65,69,57,67,82,81,76,111,57,120,124,122,125,127,108,112,103,137,130,116,119,121,120,168,178,168,170,169,170,182,166,176,162,219,185,173,185,159,159,343,334,349,325,341,322,440,444,450,445,441,421,462,435,423,416,403,387,349,300,453,428,430,354,445,318,574,553,939,912,900,869,1046,1004,1539,1526,1041,958]} 1. e4 {[%emt 0:01:05]} e5 {[%emt 0:00:07]} 2. Nf3 {[%emt 0:00:08]} Nc6 {[%emt 0:00:07]} 3. Bb5 {[%emt 0:00:03]} a6 {[%emt 0:00:13]} 4. Ba4 {[%emt 0:00:02]} Nf6 {[%emt 0:00:14]} 5. O-O {[%emt 0:00:02]} Be7 {[%emt 0:00:13]} 6. Re1 {[%emt 0:00:09]} b5 {[%emt 0:00:12]} 7. Bb3 {[%emt 0:00:02]} d6 {[%emt 0:00:14]} 8. c3 {[%emt 0:00:04]} O-O {[%emt 0:00:17]} 9. h3 {[%emt 0:00:02]} Na5 {[%emt 0:00:23]} 10. Bc2 {[%emt 0:00:07]} c5 {[%emt 0:00:13]} 11. d4 {[%emt 0:00:47]} Qc7 {[%emt 0:00:18]} 12. d5 {[%emt 0:04:56]} Bd7 {[%emt 0:00:20]} 13. Nbd2 {[%emt 0:00:18][%cal Bb1d2,Bd2f1,Bf1g3][%mdl 32]} Rfe8 {[%emt 0:01:28]} 14. Nf1 {[%emt 0:00:32]} Nc4 {[%emt 0:10:32] C97: Closed Ruy Lopez: Chigorin Defence: 11 d4 Qc7, sidelines.} 15. Ng3 {[%emt 0:05:59]} g6 {[%emt 0:02:05]} 16. Nh2 {[%emt 0:06:58]} Bf8 {[%emt 0:02:33] White has an edge.} 17. b3 {[%emt 0:06:59]} Nb6 {[%emt 0:00:32] [#]} 18. Bg5 $146 {[%emt 0:00:49]} ({Predecessor:} 18. f4 exf4 19. Bxf4 Bg7 20. Qf3 Bc8 21. Rf1 Nbd7 22. Ng4 Rf8 23. Nh6+ Kh8 24. Bg5 Qd8 25. Qf4 Qe7 26. Ng4 {1-0 Ragger,M (2528)-Mueller,M (2405) Bundesliga 0708 2007 (6.6)}) 18... Bg7 {[%emt 0:00:53]} 19. Qf3 {[%emt 0:00:10]} Qd8 {[%emt 0:02:23]} 20. Ng4 {[%emt 0:10:09]} Bxg4 {[%emt 0:00:19]} 21. hxg4 {[%emt 0:01:35]} h6 {[%emt 0:12:28]} 22. Be3 {[%emt 0:00:52]} Qc8 {[%emt 0:03:31]} 23. Bd1 {[%emt 0:03:59][%cal Bc2d1,Bd1e2,Be2b5,Bb5c6][%mdl 32]} Nh7 {[%emt 0:01:18]} 24. Qe2 {[%emt 0:01:05]} Qd8 {[%emt 0:06:25]} 25. Qd2 {[%emt 0:05:38]} (25. a4 $16) 25... Ng5 {[%emt 0:06:00]} (25... Bf6 $14) 26. Be2 $16 {[%emt 0:01:31]} Nd7 {[%emt 0:02:24]} 27. a4 {[%emt 0:01:55] Black is weak on the light squares} Rb8 {[%emt 0:07:06]} 28. axb5 {[%emt 0:02:13]} axb5 {[%emt 0:00:06]} 29. Ra6 {[%emt 0:03:06]} Qe7 {[%emt 0:01:06]} 30. Ra5 {[%emt 0:04:47]} b4 {[%emt 0:01:16]} 31. Bb5 {[%emt 0:00:24]} bxc3 {[%emt 0:01:36]} 32. Qxc3 {[%emt 0:00:45]} Ra8 {[%emt 0:02:05]} (32... Rb6 $16 33. b4 Reb8 34. Bxd7 Qxd7) 33. Bc6 $18 {[%emt 0:02:56]} Rxa5 {[%emt 0:00:54]} 34. Qxa5 {[%emt 0:00:19]} Rd8 {[%emt 0:00:57]} 35. f3 {[%emt 0:08:24]} Bf8 {[%emt 0:02:22]} 36. Ra1 {[%emt 0:02:43][%cal Be1a1,Ba1a7,Ba7b7][%mdl 32]} Nb8 {[%emt 0:04:06]} 37. Bb5 {[%emt 0:00:55]} Rc8 {[%emt 0:00:32]} (37... Nd7 $142 38. Qa7 Nf6) 38. Qa8 {[%emt 0:02:38] Threatens to win with Bd2.} Qd8 {[%emt 0:01:47][%cal Ob8c6]} 39. Bxg5 {[%emt 0:04:14]} hxg5 {[%emt 0:00:32] [#]} 40. Ra7 {[%emt 0:01:22] Prevents Nd7. White has more active pieces. The black rooks are badly placed.} Rc7 {[%emt 0:08:44] [#] Against Qb7. This move loses the game for Black.} (40... Nc6 $2 41. Qxc6 Rxc6 42. dxc6 $18) (40... Na6 $16 {was necessary.} 41. Qb7 Nc7) 41. Rb7 $1 {[%emt 0:00:33]} Rxb7 {[%emt 0:00:56]} 42. Qxb7 {[%emt 0:00:08]} Kg7 {[%emt 0:01:37]} 43. Nf1 {[%emt 0:01:08]} Kg8 {[%emt 0:00:22]} 44. Ne3 {[%emt 0:00:07]} Kg7 {[%emt 0:00:25]} 45. Nc4 {[%emt 0:00:23]} Kg8 {[%emt 0:00:19]} 46. Kf2 {[%emt 0:00:43]} Kg7 {[%emt 0:00:28]} 47. Ke2 {[%emt 0:00:11]} Kg8 {[%emt 0:00:10]} 48. Ba4 {[%emt 0:00:13]} Kg7 {[%emt 0:00:55]} 49. Kd3 {[%emt 0:00:22]} Kg8 {[%emt 0:00:13]} 50. Nb6 {[%emt 0:01:18]} Kg7 {[%emt 0:01:13]} (50... f5 $142 51. gxf5 gxf5 52. exf5 g4) 51. Kc2 {[%emt 0:00:49]} (51. Nc8 Qa5 $14) 51... Kg8 {[%emt 0:00:34]} 52. Bb5 {[%emt 0:00:04]} ({Less strong is} 52. Nc8 f5 $16) 52... Kg7 {[%emt 0:00:16]} 53. Kb2 {[%emt 0:00:12] Ka3 would be deadly.} (53. Nc8 Qa5 $11) 53... Kg8 $2 {[%emt 0:00:14]} (53... Be7 54. Kc2 (54. Nc8 Qa5 $11) 54... Kg8) 54. Ka3 {[%emt 0:00:05] Black must now prevent Ka4. White is clearly winning.} ({Inferior is} 54. Nc8 Qa5 $11) 54... Kg7 {[%emt 0:00:15]} 55. Ka4 {[%emt 0:00:04]} Kg8 {[%emt 0:01:01]} 56. Nc8 {[%emt 0:00:10]} Qf6 {[%emt 0:00:27]} 57. Qxb8 {[%emt 0:00:13] aiming for Nb6.} Qf4 {[%emt 0:00:11]} 58. Ka5 {[%emt 0:00:36]} Qd2+ {[%emt 0:00:35]} 59. Kb6 {[%emt 0:00:20] Weighted Error Value: White=0.12 (very precise) /Black=0.35} 1-0